bitfinex/quotes_ETHUSD_20251120
["timestamp","ask_amount","ask_price","bid_price","bid_amount"]
[1763641437911,0.002,3021.0,3020.9,8.95324671]
[1763641439118,0.002,3021.0,3020.9,12.26351848]
[1763641439840,0.002,3021.0,3020.9,13.17051112]
[1763641440127,0.0012,3021.2,3021.1,0.405504]
[1763641440323,0.0012,3021.2,3021.1,6.62778229]
[1763641440552,0.002,3021.4,3021.1,6.62778229]
[1763641440553,0.002,3021.4,3021.1,8.00887493]
[1763641440755,0.112,3022.5,3021.1,8.00887493]
[1763641440756,0.71457949,3022.5,3021.7,0.405504]
[1763641440908,0.71441677,3022.8,3022.4,0.4757]
[1763641441114,0.31005189,3022.7,3022.2,6.6176957]
[1763641441424,0.31005189,3023.0,3022.1,3.50541637]
[1763641441677,0.35140291,3022.9,3022.1,3.42091637]
[1763641441809,1.02446866,3022.9,3022.1,6.72987371]
[1763641442138,0.31005189,3022.8,3022.1,6.72987371]
[1763641442517,0.79045189,3022.9,3022.1,6.72987371]
[1763641443305,3.6181491,3022.9,3022.1,3.30891637]
[1763641443510,0.79045189,3022.8,3022.1,6.61787371]
[1763641443944,0.4804,3022.8,3022.1,6.61787371]
[1763641444654,0.78965097,3022.8,3022.1,6.60197371]
[1763641444958,0.30925097,3022.8,3022.1,6.60197371]
[1763641445128,0.04135102,3022.9,3022.2,0.4741]
[1763641445326,0.04135102,3022.9,3022.0,3.30906684]
[1763641445327,7.44718413,3022.9,3022.0,3.30906684]
[1763641445549,7.44718413,3022.9,3021.6,0.90699264]
[1763641445550,0.0689,3022.1,3021.6,0.90699264]
[1763641445777,0.5452,3022.1,3021.6,0.90699264]
[1763641446375,0.5452,3022.1,3021.5,6.61922884]
[1763641446577,0.5452,3022.1,3021.5,3.30961442]
[1763641446766,0.5452,3022.1,3021.5,6.61922884]
[1763641447336,0.5452,3022.1,3021.3,7.52665966]
[1763641447543,0.5452,3022.1,3021.4,1.18555449]
[1763641447544,0.0689,3022.1,3021.4,1.18555449]
[1763641448162,0.5343,3022.1,3021.3,7.52665966]
[1763641448839,0.5343,3022.1,3021.3,8.00045966]
[1763641449952,0.0156,3021.4,3021.3,4.21682615]
[1763641450750,0.1564,3021.6,3021.3,4.21682615]
[1763641451571,0.1564,3021.6,3021.3,7.52665966]
[1763641451882,0.0838,3021.4,3021.2,7.52683555]
[1763641452089,0.1564,3021.6,3021.2,7.52683555]
[1763641452276,0.1564,3021.6,3021.2,4.21689249]
[1763641452874,0.458,3021.3,3021.1,3.31004151]
[1763641453097,0.458,3021.3,3021.0,4.21712625]
[1763641453612,0.0009,3021.1,3021.0,4.21712625]
[1763641454010,0.0009,3021.1,3021.0,0.90699264]
[1763641455484,0.4663,3021.1,3020.5,3.79]
[1763641455728,0.0009,3021.1,3020.6,11.31819372]
[1763641456021,0.4654,3021.0,3020.6,3.79]
[1763641456317,0.0008,3020.7,3020.6,3.79]
[1763641456499,0.1526,3020.7,3020.4,0.90699264]
[1763641456740,0.5774,3021.0,3020.4,0.90699264]
[1763641456741,0.112,3021.0,3020.4,0.90699264]
[1763641457186,0.1518,3020.9,3020.4,0.90699264]
[1763641457718,0.1518,3020.9,3020.5,3.31071014]
[1763641458079,0.458,3020.6,3020.5,4.21770278]
[1763641458307,0.458,3020.6,3020.5,0.90699264]
[1763641459392,0.1518,3020.9,3020.5,1.83239264]
[1763641459912,0.1518,3020.9,3020.6,3.31060054]
[1763641460297,0.1518,3020.9,3020.6,6.62120108]
[1763641460504,0.112,3021.0,3020.6,6.62120108]
[1763641461186,0.112,3021.0,3020.6,3.31060054]
[1763641461386,0.112,3021.0,3020.6,6.62120108]
[1763641462120,0.112,3021.0,3020.5,0.90699264]
[1763641462421,0.112,3021.0,3020.5,7.528395]
[1763641462818,0.1518,3020.9,3020.5,4.21768486]
[1763641463223,0.1518,3020.9,3020.5,7.528395]
[1763641464241,0.151,3020.9,3020.5,7.528395]
[1763641464417,0.151,3020.9,3020.5,4.21768486]
[1763641464723,0.151,3020.9,3020.5,7.528395]
[1763641465634,0.112,3021.0,3020.8,0.4516]
[1763641465931,0.112,3021.4,3020.9,0.4516]
[1763641466332,0.88642588,3021.4,3021.0,3.31016219]
[1763641466537,0.5774,3021.4,3021.0,3.31016219]
[1763641466700,0.112,3021.4,3021.0,3.31016219]
[1763641466905,0.0838,3021.1,3020.7,3.31041804]
[1763641467135,0.0838,3021.1,3020.8,0.3784218]
[1763641467336,0.0838,3021.1,3020.7,6.62090898]
[1763641467540,0.5774,3021.4,3020.7,7.09470898]
[1763641467913,0.112,3021.4,3020.7,9.93139992]
[1763641468132,0.112,3021.4,3020.8,0.4922]
[1763641468440,0.112,3021.4,3020.9,6.62054354]
[1763641468639,0.112,3021.4,3021.0,0.71127435]
[1763641468827,0.112,3021.4,3021.0,1.20347435]
[1763641469601,0.112,3021.4,3021.3,0.4875]
[1763641470057,0.112,3021.7,3021.3,0.4875]
[1763641470339,0.42097859,3021.7,3021.3,3.79723631]
[1763641471108,0.42097859,3021.7,3021.3,4.57626396]
[1763641471533,0.89867859,3021.7,3021.3,0.77902765]
[1763641471788,0.0715,3021.4,3021.2,3.30989031]
[1763641471909,0.4581,3021.3,3021.0,0.71127435]
[1763641472110,0.4581,3021.3,3021.0,6.62030376]
[1763641472428,0.4581,3021.3,3020.8,6.6207627]
[1763641472613,3.4005197,3021.6,3020.8,6.6207627]
[1763641472614,0.0009,3021.1,3020.8,6.6207627]
[1763641472941,0.4777,3021.5,3020.8,0.67327627]
[1763641473237,0.4777,3021.5,3020.7,6.62098188]
[1763641473238,0.04137154,3021.4,3020.7,6.62098188]
[1763641473443,0.30915851,3021.5,3020.8,0.4922]
[1763641473647,0.04137018,3021.5,3020.8,0.4922]
[1763641473832,0.35052869,3021.5,3020.8,0.4922]
[1763641474008,0.82822869,3021.5,3020.8,0.4922]
[1763641474213,0.30915851,3021.4,3020.8,1.58251819]
[1763641474439,0.78685851,3021.5,3020.9,6.62054354]
[1763641475342,0.30915851,3021.5,3020.9,6.62054354]
[1763641475567,0.42115851,3021.7,3021.0,0.4922]
[1763641475871,0.42115851,3021.7,3021.1,0.90217435]
[1763641476169,0.112,3021.7,3021.1,0.90217435]
[1763641476333,0.42115851,3021.7,3021.2,6.61988612]
[1763641476776,0.42115851,3021.7,3021.2,3.80214306]
[1763641476958,3.7306005,3021.7,3021.1,4.2122102]
[1763641477150,0.30968814,3021.6,3021.1,7.52226282]
[1763641477468,0.42168814,3021.7,3021.1,4.7044102]
[1763641477672,0.42168814,3021.7,3021.1,8.01446282]
[1763641477868,3.73122281,3021.7,3021.1,4.70442328]
[1763641478082,0.30978029,3021.6,3021.1,4.70442328]
[1763641478892,0.30978029,3021.6,3021.1,8.0144759]
[1763641479066,1.13572322,3021.7,3021.1,8.0144759]
[1763641479259,0.30978029,3021.6,3021.1,8.0144759]
[1763641479578,0.30978029,3021.6,3021.2,0.4756]
[1763641480343,0.112,3021.7,3021.5,0.4676]
[1763641480344,0.30978029,3021.7,3021.5,0.4676]
[1763641480564,0.42178029,3022.0,3021.6,0.4676]
[1763641480879,0.30978029,3021.9,3021.6,0.4676]
[1763641481076,0.30978029,3021.9,3021.7,3.30939537]
[1763641481377,0.30978029,3021.9,3021.8,0.4676]
[1763641481577,0.112,3022.0,3021.8,0.4676]
[1763641481578,0.42178029,3022.0,3021.8,0.4676]
[1763641482344,0.112,3022.0,3021.8,0.4676]
[1763641482545,0.31178029,3022.1,3021.9,0.4676]
[1763641482765,0.4848,3022.0,3021.6,6.618967]
[1763641483088,0.30978029,3022.0,3021.6,7.65939386]
[1763641483289,0.31178029,3022.1,3021.6,7.65939386]
[1763641483585,0.002,3022.1,3021.6,8.13499386]
[1763641483756,0.31178029,3022.1,3021.6,8.13499386]
[1763641483957,0.002,3022.1,3021.6,4.82548897]
[1763641484184,0.80568029,3022.1,3021.5,3.30958326]
[1763641484383,0.30978029,3022.0,3021.5,6.61919768]
[1763641484576,0.80568029,3022.1,3021.5,6.61919768]
[1763641484776,0.30978029,3022.0,3021.5,6.61919768]
[1763641484977,0.80568029,3022.1,3021.5,6.61919768]
[1763641485689,0.30980049,3022.0,3021.5,7.71887745]
[1763641485996,0.31180049,3022.1,3022.0,0.4676]
[1763641486172,0.31180049,3022.1,3022.0,0.9432]
[1763641486173,0.002,3022.1,3022.0,0.9432]
[1763641486493,0.002,3022.1,3022.0,1.78407391]
[1763641487058,0.002,3022.1,3022.0,2.18957791]
[1763641487590,0.002,3022.1,3022.0,6.40563739]
[1763641488193,0.0012,3022.1,3022.0,6.40563739]
[1763641490590,0.0012,3022.1,3022.0,6.42849907]
[1763641491192,0.0012,3022.1,3022.0,10.21849907]
[1763641491393,0.0012,3022.1,3022.0,10.19563739]
[1763641493628,0.0012,3022.1,3022.0,10.30763739]
[1763641495595,0.002,3022.5,3022.0,16.92577107]
[1763641495905,0.002,3022.5,3022.4,1.057004]
[1763641496107,0.002,3022.5,3022.4,1.644604]
[1763641496934,0.002,3022.5,3022.4,9.02099383]
[1763641497144,0.002,3022.5,3022.4,8.99814309]
[1763641497604,0.002,3022.5,3022.4,12.19477199]
[1763641497804,0.002,3022.5,3022.4,7.2019758]
[1763641498033,0.002,3022.5,3022.4,7.7895758]
[1763641498231,0.0575,3022.5,3022.4,6.1449718]
[1763641498441,0.002,3022.5,3022.4,6.1449718]
[1763641498600,0.002,3022.5,3022.4,6.6125718]
[1763641498998,0.002,3022.5,3022.4,7.0881718]
[1763641499199,0.002,3022.5,3022.4,6.6125718]
[1763641499437,0.002,3022.5,3022.4,6.1449718]
[1763641500245,0.002,3022.5,3022.4,5.15882154]
[1763641500750,0.002,3022.5,3022.4,4.68322154]
[1763641500930,0.002,3022.5,3021.1,0.1909]
[1763641500931,0.5513,3022.5,3021.1,0.1909]
[1763641501260,0.0665,3022.5,3021.2,3.30988645]
[1763641501422,0.0687,3022.4,3021.2,3.30988645]
[1763641501603,0.4765,3021.3,3021.1,3.31000792]
[1763641501810,0.0687,3022.4,3020.9,3.31119169]
[1763641501811,0.1612,3021.2,3020.9,3.31119169]
[1763641502044,0.4718,3021.0,3020.9,0.34331917]
[1763641502248,0.4718,3021.0,3020.9,0.001]
[1763641502408,0.5492,3021.0,3020.9,0.001]
[1763641503356,3.85936219,3021.0,3020.9,0.001]
[1763641503910,0.5492,3021.0,3020.9,0.001]
[1763641504214,3.85936219,3021.0,3020.9,0.001]
[1763641504751,10.78811986,3021.0,3020.2,0.001]
[1763641504910,0.4848,3020.6,3020.2,0.001]
[1763641505112,0.5968,3020.6,3020.2,0.001]
[1763641505346,0.6613,3020.6,3020.2,0.001]
[1763641506454,0.4848,3020.6,3020.2,0.001]
[1763641506617,0.5493,3020.6,3020.2,0.001]
[1763641506823,0.4848,3020.6,3020.2,0.001]
[1763641507354,0.112,3020.8,3020.2,0.001]
[1763641507518,0.112,3020.8,3020.2,0.42940706]
[1763641507719,0.6503,3021.2,3020.2,0.001]
[1763641508016,0.4939,3021.1,3020.2,0.406504]
[1763641508220,0.4939,3021.1,3020.3,6.62185874]
[1763641508856,3.8039662,3021.1,3020.3,3.31092937]
[1763641509055,0.0555,3020.6,3020.2,3.31200695]
[1763641509255,0.5361,3020.6,3020.2,3.31200695]
[1763641509624,0.5361,3020.6,3020.2,3.31202263]
[1763641510260,0.4806,3021.1,3020.2,0.001]
[1763641510553,3.79068391,3021.1,3020.2,0.001]
[1763641510945,0.4806,3021.0,3020.2,0.001]
[1763641512247,0.4798,3021.0,3020.2,0.001]
[1763641512757,0.112,3021.0,3020.2,6.623078]
[1763641513464,0.5,3020.6,3020.2,0.001]
[1763641514668,0.112,3021.0,3020.2,0.5007]
[1763641515030,0.0679,3020.6,3020.2,0.001]
[1763641515448,3.89868555,3021.0,3020.2,0.001]
[1763641515655,3.42218055,3021.0,3020.2,0.001]
[1763641515858,0.4806,3020.9,3020.2,0.001]
[1763641516051,0.0679,3020.6,3020.2,0.001]
[1763641517564,3.37850054,3020.6,3020.2,0.001]
[1763641517874,3.85500054,3020.6,3020.2,0.001]
[1763641518240,3.89638304,3020.6,3020.2,0.001]
[1763641518641,3.85500054,3020.6,3020.2,0.001]
[1763641521186,3.37850054,3020.6,3020.2,0.001]
[1763641521370,0.0679,3020.6,3020.2,0.001]
[1763641521571,0.0679,3020.6,3020.2,0.02390504]
[1763641521572,0.112,3020.6,3020.2,0.02390504]
[1763641521747,0.112,3020.6,3020.2,0.001]
[1763641522549,0.112,3020.6,3020.2,0.02390504]
[1763641522751,0.1564,3021.2,3020.5,4.29841014]
[1763641522951,0.1556,3021.5,3020.8,0.487]
[1763641523294,0.002,3020.9,3020.8,0.487]
[1763641523689,0.002,3020.9,3020.8,0.9867]
[1763641525097,0.002,3020.9,3020.8,4.29708135]
[1763641525504,0.002,3020.9,3020.8,3.79738135]
[1763641525658,0.002,3020.9,3020.8,5.08396025]
[1763641526966,0.002,3020.9,3020.8,5.99095289]
[1763641528473,0.002,3020.9,3020.8,5.49125289]
[1763641528675,0.002,3020.9,3020.8,5.99095289]
[1763641530408,0.002,3020.9,3020.8,0.7868789]
[1763641530616,0.002,3020.9,3020.6,3.31059502]
[1763641530912,0.2214,3020.9,3020.5,3.31170725]
[1763641531065,0.0667,3020.9,3020.5,6.62241739]
[1763641531266,0.0667,3020.9,3020.5,3.77930725]
[1763641531679,0.002,3020.9,3020.8,0.4586]
[1763641531919,0.002,3020.9,3020.6,0.02289903]
[1763641532200,0.002,3020.9,3020.5,3.31170725]
[1763641532365,0.002,3020.9,3020.5,0.33217073]
[1763641532803,0.002,3020.9,3020.6,0.02289903]
[1763641533009,0.002,3020.9,3020.8,0.4586]
[1763641534395,0.002,3020.9,3020.8,3.76898135]
[1763641534918,0.002,3020.9,3020.8,4.23658135]
[1763641535070,0.4768,3020.9,3020.8,4.06508826]
[1763641535393,0.4768,3020.9,3020.6,6.62120108]
[1763641536185,0.476,3020.9,3020.6,6.62120108]
[1763641536383,0.0012,3020.9,3020.6,6.62120108]
[1763641536586,0.0012,3020.9,3020.8,0.4586]
[1763641537399,0.0012,3020.9,3020.8,0.9262]
[1763641537900,0.0012,3020.9,3020.8,1.68094011]
[1763641538599,0.0012,3020.9,3020.8,4.99132146]
[1763641539008,0.0012,3020.9,3020.8,4.23658135]
[1763641539192,0.0012,3020.9,3020.8,3.76898135]
[1763641540073,0.0012,3020.9,3020.8,4.22378135]
[1763641540299,0.0012,3020.9,3020.8,0.4586]
[1763641540498,0.0012,3020.9,3020.6,3.31059978]
[1763641540675,0.0012,3020.9,3020.6,7.49695737]
[1763641540881,0.0012,3020.9,3020.8,0.4623]
[1763641541492,0.0012,3020.9,3020.8,0.9171]
[1763641542578,0.0012,3020.9,3020.8,3.77268135]
[1763641543067,0.0012,3020.9,3020.8,4.22748135]
[1763641543275,0.0012,3020.9,3020.8,5.0233735]
[1763641544305,0.0012,3020.9,3020.8,4.5685735]
[1763641544711,0.0012,3020.9,3020.8,5.0233735]
[1763641547803,0.0012,3020.9,3020.8,4.5685735]
[1763641547979,0.0012,3020.9,3020.8,5.0233735]
[1763641548813,0.0012,3020.9,3020.8,5.0204935]
[1763641550530,0.0012,3020.9,3020.8,4.5656935]
[1763641550712,0.0012,3020.9,3020.8,3.76980135]
[1763641551392,0.0012,3020.9,3020.7,7.10048309]
[1763641551393,0.0692,3020.9,3020.7,3.79]
[1763641551587,0.0048,3020.8,3020.7,3.79]
[1763641551788,0.0048,3020.8,3020.5,0.001]
[1763641552002,0.0632,3020.6,3020.5,0.001]
[1763641552391,0.5474,3020.6,3020.5,0.001]
[1763641553490,3.97000054,3020.6,3020.5,0.001]
[1763641553692,4.28029133,3020.6,3020.5,0.001]
[1763641554290,4.99498271,3020.6,3020.5,0.001]
[1763641555491,4.28029133,3020.6,3020.5,0.001]
[1763641558227,0.48549079,3020.6,3020.5,0.001]
[1763641558430,0.1752,3020.6,3020.5,0.001]
[1763641558637,0.6594,3020.6,3020.5,0.001]
[1763641559037,0.48549079,3020.6,3020.5,0.001]
[1763641559407,0.1752,3020.6,3020.5,0.001]
[1763641560119,0.1744,3020.6,3020.5,0.001]
[1763641560720,0.48469079,3020.6,3020.5,0.001]
[1763641560940,0.96889079,3020.6,3020.5,0.001]
[1763641561518,4.4477588,3020.6,3020.5,0.001]
[1763641561702,1.13715826,3020.6,3020.5,0.001]
[1763641562338,5.16143336,3020.6,3020.5,0.001]
[1763641562526,4.85114257,3020.6,3020.5,0.001]
[1763641562726,5.20226953,3020.6,3020.5,0.001]
[1763641563040,1.85028649,3020.6,3020.5,0.001]
[1763641563442,0.42174446,3020.6,3020.5,0.4633]
[1763641563736,0.112,3020.6,3020.5,0.001]
[1763641563937,0.1792,3020.6,3020.5,0.001]
[1763641564143,0.6592,3020.6,3020.5,0.001]
[1763641564307,0.96894446,3020.6,3020.5,0.001]
[1763641564508,0.48894446,3020.6,3020.5,0.001]
[1763641564737,0.1792,3020.6,3020.5,0.001]
[1763641565533,0.65824,3020.6,3020.5,0.001]
[1763641566069,0.96798446,3020.6,3020.5,0.001]
[1763641566271,0.30974446,3020.6,3020.5,0.9181]
[1763641566569,0.0012,3020.9,3020.5,0.9181]
[1763641566570,0.1132,3020.9,3020.5,0.9181]
[1763641566748,0.1132,3020.9,3020.8,0.4623]
[1763641567443,0.1804,3020.9,3020.6,3.31055922]
[1763641567641,0.479,3020.8,3020.5,3.31166942]
[1763641567847,0.1132,3020.9,3020.8,0.4623]
[1763641568868,0.1132,3020.9,3020.6,0.4548]
[1763641569177,0.1132,3020.9,3020.5,0.37764694]
[1763641569345,0.1132,3020.9,3020.5,7.08761744]
[1763641570470,0.1132,3020.9,3020.5,3.77684448]
[1763641570650,0.1132,3020.9,3020.5,7.08755462]
[1763641571150,0.0012,3020.9,3020.8,3.80358135]
[1763641571351,0.0012,3020.9,3020.8,0.4932]
[1763641571567,0.0012,3020.9,3020.6,3.77579913]
[1763641571568,0.0606,3020.9,3020.5,3.31167719]
[1763641571770,0.0606,3020.9,3020.5,3.64284491]
[1763641572174,0.0606,3020.9,3020.5,6.95355505]
[1763641572572,0.0012,3020.9,3020.5,6.95355505]
[1763641572773,0.0012,3020.9,3020.5,3.64284491]
[1763641573273,0.0012,3020.9,3020.5,6.95355505]
[1763641573475,0.0012,3020.9,3020.5,4.10804491]
[1763641573977,0.0012,3020.9,3020.5,0.33216772]
[1763641574275,0.0012,3020.9,3020.5,0.001]
[1763641574276,0.0594,3020.6,3020.5,0.001]
[1763641575647,0.5471,3020.6,3020.5,0.001]
[1763641576181,0.36921695,3020.6,3020.5,0.001]
[1763641576476,0.5471,3020.6,3020.5,0.001]
[1763641576774,0.85691695,3020.6,3020.5,0.001]
[1763641577766,4.16751749,3020.6,3020.5,0.001]
[1763641577966,4.92298134,3020.6,3020.5,0.001]
[1763641578866,4.88174846,3020.6,3020.5,0.001]
[1763641579067,1.57114792,3020.6,3020.5,0.001]
[1763641579268,4.42484988,3020.6,3020.5,0.001]
[1763641579485,5.13893123,3020.6,3020.5,0.001]
[1763641581171,1.82833069,3020.6,3020.5,0.001]
[1763641581372,5.13893123,3020.6,3020.5,0.001]
[1763641581969,1.82833069,3020.6,3020.5,0.001]
[1763641582215,1.02404792,3020.6,3020.5,0.4942]
[1763641582396,0.30996657,3020.6,3020.5,0.4942]
[1763641582582,0.30996657,3020.6,3020.5,0.9594]
[1763641582987,0.112,3020.8,3020.5,0.9594]
[1763641583198,0.112,3020.8,3020.7,0.4932]
[1763641583517,0.112,3020.8,3020.7,3.80369094]
[1763641583813,0.112,3020.8,3020.7,5.02693945]
[1763641584184,0.1112,3020.8,3020.7,5.02693945]
[1763641584615,0.1112,3020.8,3020.7,4.56173945]
[1763641585515,0.1112,3020.8,3020.6,3.31059413]
[1763641585516,0.96836269,3020.8,3020.5,0.001]
[1763641585689,0.0589,3020.6,3020.5,0.001]
[1763641585890,0.36896269,3020.6,3020.5,0.001]
[1763641586929,0.36896269,3020.6,3020.5,0.9594]
[1763641586930,1.02439969,3020.6,3020.5,0.9594]
[1763641587092,0.1112,3020.8,3020.5,0.9594]
[1763641587435,0.1112,3020.8,3020.7,0.4932]
[1763641587719,0.1112,3020.8,3020.7,3.80369094]
[1763641587934,0.1112,3020.8,3020.7,0.9584]
[1763641588089,0.1706,3020.8,3020.5,0.001]
[1763641588290,0.0049,3020.6,3020.5,0.001]
[1763641589929,5.06353306,3020.6,3020.5,0.001]
[1763641590112,5.77789269,3020.6,3020.5,0.001]
[1763641591211,6.67087523,3020.6,3020.5,0.001]
[1763641591416,6.62949273,3020.6,3020.5,0.001]
[1763641592421,5.73651019,3020.6,3020.5,0.001]
[1763641593153,6.63121254,3020.6,3020.5,0.001]
[1763641593352,5.73851019,3020.6,3020.5,0.001]
[1763641594323,1.93830965,3020.6,3020.5,0.001]
[1763641594525,5.24891019,3020.6,3020.5,0.001]
[1763641595151,5.73851019,3020.6,3020.5,0.001]
[1763641595856,2.42790965,3020.6,3020.5,0.001]
[1763641596051,1.93830965,3020.6,3020.5,0.001]
[1763641596637,1.93340965,3020.6,3020.5,0.001]
[1763641596840,1.02641701,3020.6,3020.5,0.4786]
[1763641597044,0.31205738,3020.6,3020.5,0.9714]
[1763641597237,0.002,3020.6,3020.5,0.9714]
[1763641597761,0.0638,3020.6,3020.5,0.001]
[1763641598059,0.41656178,3020.6,3020.5,0.001]
[1763641598355,0.72661916,3020.6,3020.5,0.001]
[1763641598954,0.31205738,3020.6,3020.5,0.001]
[1763641599131,0.002,3020.6,3020.5,0.001]
[1763641601356,0.002,3020.6,3020.5,0.9537]
[1763641602259,0.002,3020.6,3020.5,4.26441014]
[1763641603643,0.0012,3020.9,3020.6,1.31249664]
[1763641603830,0.0012,3020.9,3020.8,0.4933]
[1763641604161,0.0012,3020.9,3020.8,3.80368135]
[1763641604631,0.0012,3020.9,3020.8,4.26308135]
[1763641605539,0.0012,3020.9,3020.8,0.4933]
[1763641605734,0.0012,3020.9,3020.7,1.31053197]
[1763641605735,0.0789,3020.9,3020.5,0.001]
[1763641605935,0.0012,3020.9,3020.8,0.4933]
[1763641606337,0.0012,3020.9,3020.5,0.4604]
[1763641606531,0.0789,3020.9,3020.5,0.001]
[1763641606725,0.0789,3020.9,3020.5,3.31168871]
[1763641606726,0.5464,3020.9,3020.5,3.31168871]
[1763641606925,0.30982763,3020.8,3020.5,0.001]
[1763641607166,0.12027839,3020.9,3020.5,0.001]
[1763641607354,0.112,3020.8,3020.5,0.001]
[1763641607940,0.04138113,3020.7,3020.5,0.001]
[1763641608264,3.85500054,3020.6,3020.5,0.001]
[1763641608450,4.16482817,3020.6,3020.5,0.001]
[1763641609127,0.85422763,3020.6,3020.5,0.001]
[1763641609343,4.16482817,3020.6,3020.5,0.001]
[1763641609557,4.20621067,3020.6,3020.5,0.001]
[1763641609876,3.69732817,3020.6,3020.5,0.001]
[1763641610082,4.16482817,3020.6,3020.5,0.001]
[1763641610367,4.919787,3020.6,3020.5,0.001]
[1763641610944,5.82677964,3020.6,3020.5,0.001]
[1763641611371,5.78539714,3020.6,3020.5,0.001]
[1763641611882,6.71948199,3020.6,3020.5,0.001]
[1763641612164,6.67809949,3020.6,3020.5,0.001]
[1763641613642,6.21059949,3020.6,3020.5,0.001]
[1763641613844,6.67809949,3020.6,3020.5,0.001]
[1763641616398,6.67786842,3020.6,3020.5,0.001]
[1763641616703,6.21036842,3020.6,3020.5,0.001]
[1763641616886,5.31766607,3020.6,3020.5,0.001]
[1763641617257,1.02317289,3020.6,3020.5,0.001]
[1763641618261,3.6201971,3020.6,3020.5,0.001]
[1763641618566,4.45205593,3020.6,3020.5,0.001]
[1763641618767,0.30959656,3020.6,3020.5,0.4943]
[1763641618968,4.33325104,3020.7,3020.5,0.4943]
[1763641619282,0.30959656,3020.6,3020.5,0.4943]
[1763641619991,0.30959656,3020.6,3020.5,0.9537]
[1763641620190,0.112,3020.8,3020.5,0.9537]
[1763641620395,0.42159656,3020.8,3020.7,0.4933]
[1763641620596,4.44506456,3020.8,3020.7,0.4933]
[1763641621091,4.44506456,3020.8,3020.5,0.4604]
[1763641621279,0.30959656,3020.7,3020.5,0.4604]
[1763641621892,0.30959656,3020.7,3020.6,0.4933]
[1763641622101,0.112,3020.8,3020.6,0.4933]
[1763641622305,4.44508258,3020.8,3020.7,0.4933]
[1763641622609,1.13470123,3020.8,3020.7,0.4933]
[1763641622793,3.73197791,3020.8,3020.7,0.4933]
[1763641623177,0.42159656,3020.8,3020.7,0.4933]
[1763641623477,0.112,3020.8,3020.7,1.37913818]
[1763641623898,0.0012,3020.9,3020.7,4.68962912]
[1763641624103,0.0012,3020.9,3020.8,0.9527]
[1763641624695,0.0012,3020.9,3020.8,4.26308135]
[1763641624894,0.0012,3020.9,3020.8,0.4933]
[1763641625287,0.0012,3020.9,3020.8,4.26308135]
[1763641625482,0.0012,3020.9,3020.8,5.02044395]
[1763641628815,0.0012,3020.9,3020.8,1.7100626]
[1763641629021,0.0012,3020.9,3020.8,4.26028135]
[1763641632130,0.0004,3020.9,3020.8,0.4745]
[1763641632332,0.0004,3020.9,3020.8,0.9311]
[1763641632894,0.0004,3020.9,3020.8,0.4745]
[1763641633115,0.0004,3020.9,3020.8,4.24148135]
[1763641633641,0.0004,3020.9,3020.8,0.9311]
[1763641633824,0.0004,3020.9,3020.8,4.24148135]
[1763641634130,0.0004,3020.9,3020.8,4.99668927]
[1763641634503,0.0004,3020.9,3020.8,1.68630792]
[1763641634707,0.0004,3020.9,3020.8,4.24148135]
[1763641635206,0.0004,3020.9,3020.5,0.001]
[1763641635207,0.4886,3020.9,3020.5,0.001]
[1763641635407,0.4886,3020.9,3020.6,3.31054417]
[1763641636136,0.4886,3020.9,3020.5,0.001]
[1763641636312,0.112,3020.8,3020.5,3.31170355]
[1763641636512,0.112,3020.8,3020.6,0.4566]
[1763641636717,0.112,3020.8,3020.7,0.4745]
[1763641636935,0.112,3020.8,3020.7,0.9311]
[1763641637359,0.112,3020.8,3020.7,0.4745]
[1763641638222,0.112,3020.8,3020.7,3.78499094]
[1763641639153,0.112,3020.8,3020.7,0.4745]
[1763641639452,0.6002,3020.8,3020.5,3.311662]
[1763641639952,0.6002,3020.8,3020.5,0.001]
[1763641640157,0.6002,3020.8,3020.5,3.31168973]
[1763641640358,0.6002,3020.8,3020.5,6.62239987]
[1763641640536,0.112,3020.8,3020.5,7.33030844]
[1763641640839,0.112,3020.8,3020.7,0.4745]
[1763641641335,0.6614,3020.8,3020.5,0.001]
[1763641641657,0.4882,3020.6,3020.5,0.001]
[1763641642160,0.0004,3020.9,3020.5,0.001]
[1763641642161,0.0004,3020.9,3020.5,7.88470222]
[1763641642366,0.0004,3020.9,3020.8,0.4745]
[1763641643062,0.0004,3020.9,3020.8,0.9311]
[1763641643246,0.0004,3020.9,3020.8,4.24148135]
[1763641645075,0.0004,3020.9,3020.8,5.14847399]
[1763641645266,0.0004,3020.9,3020.8,6.00566968]
[1763641645472,0.0004,3020.9,3020.8,6.02856423]
[1763641645671,0.0004,3020.9,3020.8,6.00566968]
[1763641645911,0.0004,3020.9,3020.8,6.43406823]
[1763641646046,0.0004,3020.9,3020.8,6.41117368]
[1763641646366,0.0004,3020.9,3020.8,6.43406823]
[1763641649882,0.0004,3020.9,3020.8,6.02856423]
[1763641650049,0.0004,3020.9,3020.8,6.00566968]
[1763641650649,0.0004,3020.9,3020.8,6.43406823]
[1763641650945,0.0004,3020.9,3020.8,6.41117368]
[1763641652607,0.002,3021.3,3021.0,0.405504]
[1763641652772,0.002,3021.3,3020.9,0.90699264]
[1763641652773,0.002,3021.3,3021.2,1.089704]
[1763641653101,0.002,3021.3,3021.2,1.588504]
[1763641653284,0.002,3021.3,3021.2,1.7585544]
[1763641653685,0.002,3021.3,3021.2,0.8542504]
[1763641653995,0.002,3021.3,3021.2,4.9011357]
[1763641654364,0.002,3021.3,3021.2,3.30994306]
[1763641654566,0.0943,3021.3,3021.2,3.30994306]
[1763641654765,0.002,3021.3,3021.2,4.30664306]
[1763641655201,0.002,3021.3,3021.2,3.80784306]
[1763641655706,0.002,3021.3,3021.2,4.19202071]
[1763641655875,0.002,3021.3,3021.2,4.69082071]